bitfinex-derivatives/quotes_BTCF0:USTF0_20250501
["timestamp","ask_amount","ask_price","bid_price","bid_amount"]
[1746109840380,0.02236073,96473.0,96458.0,0.06912]
[1746109840581,4e-05,96462.0,96459.0,0.0518224]
[1746109840779,4e-05,96462.0,96461.0,0.2072846]
[1746109841787,4e-05,96462.0,96453.0,0.3608]
[1746109841988,4e-05,96462.0,96459.0,0.1]
[1746109842191,4e-05,96462.0,96461.0,0.2072858]
[1746109842391,4e-05,96462.0,96453.0,0.4126256]
[1746109842585,0.2072879,96460.0,96459.0,0.1]
[1746109843094,4e-05,96462.0,96453.0,0.3608]
[1746109843285,0.2072974,96456.0,96453.0,0.3608]
[1746109843480,0.2072928,96458.0,96453.0,0.3608]
[1746109843687,0.207288,96460.0,96453.0,0.3608]
[1746109843890,0.207288,96460.0,96453.0,0.5681016]
[1746109844193,0.2072894,96460.0,96453.0,0.3608]
[1746109844393,0.2073252,96462.0,96453.0,0.5681028]
[1746109844589,4e-05,96462.0,96453.0,0.3608]
[1746109844801,0.2072887,96460.0,96453.0,0.3608]
[1746109844984,0.2591463,96462.0,96453.0,0.3608]
[1746109845179,0.2072869,96461.0,96453.0,0.3608]
[1746109845592,0.3608,96455.0,96446.0,0.3608]
[1746109845793,0.3608,96457.0,96452.0,0.1]
[1746109846989,0.3608,96457.0,96452.0,0.3073046]
[1746109847190,0.3608,96457.0,96452.0,0.1]
[1746109847589,0.5680945,96457.0,96452.0,0.1]
[1746109847897,0.3608,96457.0,96452.0,0.1]
[1746109849396,0.568103,96453.0,96452.0,0.1]
[1746109849601,0.2073122,96449.0,96440.0,0.2073308]
[1746109849803,0.3608,96444.0,96435.0,0.3608]
[1746109850296,0.3608,96444.0,96437.0,0.0518343]
[1746109850490,0.38346182,96444.0,96441.0,0.2073273]
[1746109850685,0.38346182,96444.0,96439.0,0.207333]
[1746109850991,0.38346182,96444.0,96440.0,0.2083295]
[1746109851198,0.38346182,96444.0,96441.0,0.2073285]
[1746109851395,5.401e-05,96470.0,96461.0,0.2072858]
[1746109851599,5.401e-05,96470.0,96461.0,0.9288858]
[1746109851902,0.02206581,96467.0,96466.0,0.207275]
[1746109852097,4e-05,96462.0,96449.0,0.3608]
[1746109852402,0.44571974,96460.0,96459.0,0.1]
[1746109852698,0.2073008,96454.0,96453.0,0.1]
[1746109853003,0.0518227,96459.0,96447.0,0.3608]
[1746109853301,0.0518227,96459.0,96448.0,0.1]
[1746109853302,0.2073078,96451.0,96448.0,0.1]
[1746109853997,0.2073079,96451.0,96448.0,0.1]
[1746109854401,0.2073108,96450.0,96448.0,0.1]
[1746109854597,0.2073116,96449.0,96448.0,0.1]
[1746109855494,0.0518247,96455.0,96448.0,0.1]
[1746109856102,0.2073094,96451.0,96448.0,0.1]
[1746109856506,0.0518234,96458.0,96448.0,0.1]
[1746109856798,0.0518231,96458.0,96448.0,0.1]
[1746109857005,0.2073063,96452.0,96448.0,0.1]
[1746109857300,0.2073081,96451.0,96448.0,0.1]
[1746109857603,0.2073097,96450.0,96448.0,0.1]
[1746109857996,0.2073116,96449.0,96448.0,0.1]
[1746109858195,0.2073083,96451.0,96448.0,0.1]
[1746109858705,0.2073096,96450.0,96448.0,0.1]
[1746109859107,0.23849945,96470.0,96448.0,0.1]
[1746109859305,0.2073092,96451.0,96448.0,0.1]
[1746109860008,0.2073052,96452.0,96448.0,0.1]
[1746109860707,0.2073116,96449.0,96448.0,0.1]
[1746109860906,0.0518267,96452.0,96448.0,0.1]
[1746109861403,0.207346,96433.0,96429.0,0.00768677]
[1746109861610,0.636986,96433.0,96429.0,0.00768677]
[1746109861902,0.2073567,96428.0,96409.0,0.3608]
[1746109862108,0.22930148,96428.0,96409.0,0.3608]
[1746109862300,0.33300548,96428.0,96409.0,0.3608]
[1746109862505,0.207361,96426.0,96409.0,0.3608]
[1746109862708,0.2073954,96410.0,96409.0,0.3608]
[1746109864208,0.2073954,96410.0,96409.0,0.00788676]
[1746109864408,0.2074213,96398.0,96395.0,0.00103739]
[1746109864805,0.31115731,96398.0,96395.0,0.00103739]
[1746109864999,0.2074256,96396.0,96395.0,0.00103739]
[1746109865205,0.2732656,96396.0,96395.0,0.00103739]
[1746109865407,0.37400561,96396.0,96395.0,0.00103739]
[1746109865799,0.2702656,96396.0,96395.0,0.00103739]
[1746109866002,0.1904256,96396.0,96395.0,0.00103739]
[1746109866208,0.2592656,96396.0,96395.0,0.00103739]
[1746109866409,0.2592656,96396.0,96395.0,0.0089243]
[1746109866611,0.2592656,96396.0,96395.0,0.00303739]
[1746109866914,0.2592656,96396.0,96395.0,0.00503739]
[1746109867408,0.1904256,96396.0,96395.0,0.00503739]
[1746109867708,4e-05,96396.0,96395.0,0.00503739]
[1746109867912,0.1206957,96398.0,96395.0,0.00503739]
[1746109868116,0.328117,96398.0,96397.0,0.3608]
[1746109868311,0.2762613,96398.0,96397.0,0.3608]
[1746109869015,0.2782613,96398.0,96397.0,0.3608]
[1746109869214,0.2802613,96398.0,96397.0,0.3608]
[1746109869517,0.2074256,96396.0,96395.0,0.00103739]
[1746109870711,0.2074256,96396.0,96395.0,0.00871372]
[1746109871016,0.2074256,96396.0,96395.0,0.00103739]
[1746109872010,0.2763056,96396.0,96395.0,0.00103739]
[1746109872208,0.2793056,96396.0,96395.0,0.00103739]
[1746109874310,0.2790656,96396.0,96395.0,0.00103739]
[1746109876319,0.2104256,96396.0,96395.0,0.00103739]
[1746109876618,0.2790656,96396.0,96395.0,0.00103739]
[1746109879722,0.2760656,96396.0,96395.0,0.00103739]
[1746109880014,0.2780656,96396.0,96395.0,0.00883599]
[1746109880418,0.22623651,96396.0,96389.0,9.778e-05]
[1746109880616,0.22623651,96396.0,96365.0,0.00103772]
[1746109880617,0.2074901,96366.0,96365.0,0.00103772]
[1746109881014,0.3112621,96366.0,96365.0,0.00103772]
[1746109881622,0.31136155,96366.0,96365.0,0.00103772]
[1746109881811,0.31136155,96366.0,96365.0,0.00703772]
[1746109882008,0.33117226,96366.0,96365.0,0.00703772]
[1746109882414,0.33117226,96366.0,96365.0,0.00103772]
[1746109882614,0.2075074,96358.0,96357.0,0.0015567]
[1746109882811,0.2075074,96358.0,96357.0,1e-08]
[1746109883118,0.2075517,96338.0,96337.0,0.2075526]
[1746109883320,0.2075517,96338.0,96337.0,0.3075526]
[1746109883321,0.20762869,96338.0,96337.0,0.3075526]
[1746109883514,0.20762739,96338.0,96337.0,0.1]
[1746109883823,0.20562739,96338.0,96337.0,0.1]
[1746109884410,0.20262739,96338.0,96337.0,0.105]
[1746109884913,0.22236407,96338.0,96337.0,0.103]
[1746109885213,0.22236407,96338.0,96337.0,0.108]
[1746109886322,0.2075957,96317.0,96311.0,0.3608]
[1746109886517,0.2076173,96307.0,96300.0,0.1]
[1746109886821,0.5684173,96307.0,96300.0,0.1]
[1746109887422,0.6722533,96307.0,96300.0,0.1]
[1746109887717,0.1996194,96306.0,96305.0,0.00877557]
[1746109888310,0.1986194,96306.0,96305.0,0.00877557]
[1746109888512,0.19869596,96306.0,96305.0,0.00877557]
[1746109888718,0.19869596,96306.0,96305.0,0.21639717]
[1746109888719,7.656e-05,96306.0,96305.0,0.21639717]
[1746109888918,0.00011656,96306.0,96305.0,0.00877557]
[1746109889117,0.00011656,96306.0,96305.0,0.21639717]
[1746109889324,7.656e-05,96306.0,96305.0,0.21639717]
[1746109889627,0.00011656,96306.0,96305.0,0.21639717]
[1746109890229,0.00411656,96306.0,96305.0,0.57819717]
[1746109890423,0.00407656,96306.0,96305.0,0.93201237]
[1746109890625,0.0518875,96339.0,96305.0,0.72441157]
[1746109890822,0.2075491,96329.0,96328.0,0.3608]
[1746109891129,7.291e-05,96332.0,96328.0,0.3608]
[1746109891330,0.01954013,96336.0,96328.0,0.3608]
[1746109891518,0.2075839,96332.0,96328.0,0.3608]
[1746109891822,0.005,96335.0,96328.0,0.3608]
[1746109892018,4e-05,96332.0,96328.0,0.3608]
[1746109892419,0.2075466,96331.0,96328.0,0.3608]
[1746109892726,4e-05,96332.0,96328.0,0.3608]
[1746109892929,4e-05,96332.0,96331.0,0.2075447]
[1746109893118,4e-05,96332.0,96331.0,0.2762247]
[1746109893326,0.006,96332.0,96331.0,0.2762247]
[1746109893516,5.401e-05,96345.0,96331.0,0.42248799]
[1746109893720,5.401e-05,96345.0,96344.0,0.3608]
[1746109894028,0.02000079,96348.0,96345.0,0.2075144]
[1746109894239,0.2074979,96353.0,96344.0,0.773479]
[1746109894438,0.02045745,96353.0,96352.0,0.3608]
[1746109894628,0.2074974,96353.0,96352.0,0.3608]
[1746109895838,0.22771244,96353.0,96352.0,0.3608]
[1746109896426,0.02521504,96353.0,96352.0,0.5682995]
[1746109896635,0.02521504,96353.0,96352.0,0.3608]
[1746109896827,0.02921504,96353.0,96352.0,0.5682995]
[1746109897236,0.03225504,96353.0,96352.0,0.5692995]
[1746109897436,0.03225504,96353.0,96352.0,0.3618]
[1746109897842,0.02025504,96353.0,96352.0,0.5682995]
[1746109898141,0.02825504,96353.0,96352.0,0.5692995]
[1746109898343,0.00804,96353.0,96352.0,0.5692995]
[1746109898534,0.00804,96353.0,96352.0,0.6730835]
[1746109898731,0.02041516,96361.0,96360.0,0.2074823]
[1746109898932,0.02036115,96361.0,96360.0,0.5682823]
[1746109899240,0.2074801,96361.0,96360.0,0.3608]
[1746109899741,0.2075201,96361.0,96360.0,0.3608]
[1746109899935,0.2075201,96361.0,96360.0,0.5682823]
[1746109900137,0.00304,96361.0,96360.0,0.57595424]
[1746109900340,0.003,96361.0,96360.0,0.57595424]
[1746109900839,0.00304,96361.0,96360.0,0.57595424]
[1746109901036,0.00704,96361.0,96360.0,0.57595424]
[1746109901341,0.2135201,96361.0,96360.0,0.36847194]
[1746109902630,0.2075201,96361.0,96360.0,0.36847194]
[1746109902835,0.2105201,96361.0,96360.0,0.36847194]
[1746109903340,0.2105201,96361.0,96360.0,0.00767194]
[1746109903545,0.207521,96342.0,96341.0,0.368573]
[1746109905947,0.209521,96342.0,96341.0,0.369573]
[1746109906338,0.211521,96342.0,96341.0,0.368573]
[1746109906741,0.214521,96342.0,96341.0,0.369573]
[1746109907139,0.575321,96342.0,96341.0,0.008773]
[1746109907338,0.2075404,96333.0,96332.0,0.00155704]
[1746109908535,0.22711557,96333.0,96332.0,0.00155704]
[1746109908741,0.58791557,96333.0,96332.0,0.00155704]
[1746109908938,0.59191557,96333.0,96332.0,0.00949739]
[1746109909145,0.59191557,96333.0,96332.0,0.00155704]
[1746109910437,0.59091557,96333.0,96332.0,0.00155704]
[1746109910643,0.59191557,96333.0,96332.0,0.00155704]
[1746109912052,0.59091557,96333.0,96332.0,0.00155704]
[1746109912249,0.59491557,96333.0,96332.0,0.00255704]
[1746109912442,0.69872357,96333.0,96332.0,0.00255704]
[1746109913944,0.2075878,96311.0,96310.0,0.3608]
[1746109915141,0.2075878,96311.0,96310.0,0.36864323]
[1746109918546,0.2076278,96311.0,96310.0,0.36864323]
[1746109918746,0.2096278,96311.0,96310.0,0.36864323]
[1746109919149,0.2126278,96311.0,96310.0,0.36864323]
[1746109921153,0.2075986,96306.0,96305.0,9e-08]
[1746109921351,0.2075986,96306.0,96302.0,0.00155764]
[1746109921352,0.2076051,96303.0,96302.0,3e-08]
[1746109921555,0.2076094,96301.0,96300.0,0.06084013]
[1746109921859,0.4126998,96306.0,96287.0,0.36235783]
[1746109921860,0.2076374,96288.0,96287.0,0.36235783]
[1746109922156,0.2076374,96288.0,96287.0,0.00921505]
[1746109923057,0.2076374,96288.0,96287.0,0.01221505]
[1746109923458,0.2076374,96288.0,96287.0,0.01521505]
[1746109923756,0.2077129,96253.0,96246.0,0.0519319]
[1746109924059,0.0519304,96249.0,96234.0,0.3608]
[1746109924263,0.207728,96246.0,96245.0,0.00899412]
[1746109924555,0.2077518,96235.0,96234.0,0.3608]
[1746109924947,0.2067518,96235.0,96234.0,0.368717]
[1746109925260,0.20683308,96235.0,96234.0,0.368717]
[1746109925758,0.20283308,96235.0,96234.0,0.368717]
[1746109925960,0.20383308,96235.0,96234.0,0.373717]
[1746109927153,0.00108128,96235.0,96234.0,0.5814709]
[1746109927354,0.20883308,96235.0,96234.0,0.5814709]
[1746109927561,0.20883308,96235.0,96234.0,0.5844709]
[1746109927951,0.00112128,96235.0,96234.0,0.5834709]
[1746109928156,0.00112128,96235.0,96234.0,0.5824709]
[1746109928353,0.2077272,96248.0,96238.0,0.0519359]
[1746109928550,0.2077272,96248.0,96247.0,0.3608]
[1746109929464,0.2077708,96248.0,96247.0,0.3608]
[1746109930663,0.2077708,96248.0,96247.0,0.5685259]
[1746109930853,0.2077708,96248.0,96247.0,0.3608]
[1746109931871,0.2087708,96248.0,96247.0,0.3618]
[1746109934566,0.2087708,96248.0,96247.0,0.5695259]
[1746109934765,0.2087708,96248.0,96247.0,0.3618]
[1746109935762,0.2087708,96248.0,96247.0,0.5695259]
[1746109935959,0.2087708,96248.0,96247.0,0.3618]
[1746109936364,0.2087708,96248.0,96247.0,0.5695259]
[1746109936672,0.2087708,96248.0,96247.0,0.3618]
[1746109939863,0.2077518,96236.0,96235.0,0.2077516]
[1746109940571,0.0519364,96238.0,96234.0,0.368717]
[1746109940771,0.0010436,96248.0,96236.0,0.0519372]
[1746109940965,0.2077346,96243.0,96242.0,0.2077303]
[1746109941167,0.2077346,96243.0,96242.0,0.5685303]
[1746109941369,4.36e-05,96248.0,96247.0,0.2077259]
[1746109941577,0.00013287,96260.0,96259.0,0.2077]
[1746109941876,0.2076906,96264.0,96261.0,0.2076952]
[1746109942072,0.2076906,96264.0,96259.0,0.3608]
[1746109942073,0.2077378,96260.0,96259.0,0.3608]
[1746109944169,0.2117378,96260.0,96259.0,0.3618]
[1746109944473,0.2147378,96260.0,96259.0,0.22941209]
[1746109944775,0.2107378,96260.0,96259.0,0.22841209]
[1746109944965,0.2107378,96260.0,96259.0,0.22941209]
[1746109945168,0.2137378,96260.0,96259.0,0.22941209]
[1746109945573,0.2147378,96260.0,96259.0,0.22941209]
[1746109945871,0.2157378,96260.0,96259.0,0.22941209]
[1746109946778,0.2157378,96260.0,96259.0,0.001]
[1746109946975,0.2077237,96248.0,96247.0,0.3608]
[1746109948073,0.2087237,96248.0,96247.0,0.3608]
[1746109948379,0.2097237,96248.0,96247.0,0.3608]
[1746109950676,0.2087237,96248.0,96247.0,0.3608]
[1746109950877,0.2127237,96248.0,96247.0,0.3608]
[1746109951175,0.2127237,96248.0,96234.0,0.059855]
[1746109951176,0.0519316,96247.0,96234.0,0.007917]
[1746109951382,0.2077626,96230.0,96229.0,0.2077643]
[1746109952681,0.20755177,96230.0,96229.0,0.2077643]
[1746109952880,0.22573857,96230.0,96229.0,0.2077643]
[1746109953080,0.2077647,96229.0,96228.0,0.5685669]
[1746109953778,0.2067647,96229.0,96228.0,0.3608]
[1746109953983,0.0519406,96231.0,96229.0,0.207763]
[1746109954287,0.259703,96231.0,96228.0,0.3608]
[1746109954480,0.0519406,96231.0,96228.0,0.3618]
[1746109954672,0.2077621,96231.0,96228.0,0.3618]
[1746109954874,0.2077621,96231.0,96228.0,0.36960266]
[1746109955074,0.2077621,96231.0,96228.0,0.37160266]
[1746109955477,0.2077647,96229.0,96228.0,0.37060266]
[1746109955676,0.2077647,96229.0,96228.0,0.36960266]
[1746109955876,0.2077647,96229.0,96228.0,0.37160266]
[1746109957073,0.2077647,96229.0,96228.0,0.37060266]
[1746109958012,0.5685647,96229.0,96228.0,1e-08]
[1746109958298,0.2077928,96216.0,96215.0,0.00103933]
[1746109958495,0.2077928,96216.0,96189.0,0.06882]
[1746109958496,0.2078058,96210.0,96189.0,0.00038]
[1746109958690,0.2078252,96201.0,96189.0,0.00038]
[1746109958893,0.5686252,96201.0,96189.0,0.00038]
[1746109959399,0.58686019,96201.0,96189.0,0.00038]
[1746109959597,0.207849,96190.0,96189.0,0.00038]
[1746109959796,0.2078576,96186.0,96180.0,9.156e-05]
[1746109960100,0.2078576,96186.0,96185.0,0.00876496]
[1746109960396,0.2078576,96186.0,96185.0,0.00103966]
[1746109960791,0.2048576,96186.0,96185.0,0.00103966]
[1746109961492,0.2048576,96186.0,96185.0,0.00503966]
[1746109961808,0.3098216,96186.0,96185.0,0.00603966]
[1746109961993,0.2058576,96186.0,96185.0,0.0138786]
[1746109962194,0.2058576,96186.0,96185.0,0.00603966]
[1746109962503,0.2058976,96186.0,96185.0,0.21389946]
[1746109962800,0.2058976,96186.0,96185.0,0.00603966]
[1746109963002,0.2058976,96186.0,96185.0,0.00203966]
[1746109963200,0.00104,96186.0,96185.0,0.20989946]
[1746109963502,0.001,96186.0,96185.0,0.20989946]
[1746109963693,0.00104,96186.0,96185.0,0.20989946]
[1746109964093,0.00104,96186.0,96185.0,0.21758662]
[1746109964793,5.401e-05,96195.0,96194.0,0.2078403]
[1746109964992,0.01823499,96201.0,96200.0,0.2078274]
[1746109965194,0.2078232,96202.0,96201.0,0.2078252]
[1746109965601,0.2078202,96204.0,96203.0,0.2078187]
[1746109965801,0.22548734,96204.0,96203.0,0.2597761]
[1746109966100,5.401e-05,96209.0,96208.0,0.2078101]
[1746109966306,5.401e-05,96209.0,96208.0,0.5686101]
[1746109966605,0.09756333,96216.0,96215.0,0.207795]
[1746109967201,0.09760333,96216.0,96215.0,0.207795]
[1746109967403,0.0185128,96216.0,96215.0,0.207795]
[1746109967801,0.0184728,96216.0,96215.0,0.207795]
[1746109967994,0.005,96216.0,96215.0,0.208795]
[1746109968201,0.2128328,96216.0,96215.0,0.001]
[1746109969202,0.2188328,96216.0,96215.0,0.002]
[1746109970000,0.23697227,96216.0,96215.0,0.002]
[1746109971609,0.02917947,96216.0,96215.0,0.002]
[1746109972603,0.02917947,96216.0,96215.0,0.209795]
[1746109973100,0.23697227,96216.0,96215.0,0.209795]
[1746109974308,0.02917947,96216.0,96215.0,0.209795]
[1746109975308,0.0519411,96230.0,96215.0,0.209795]
[1746109975309,0.2077357,96243.0,96226.0,0.2077712]
[1746109975502,0.1202504,96249.0,96234.0,0.2077539]
[1746109975503,0.2077331,96244.0,96234.0,0.2077539]
[1746109975810,0.2077311,96245.0,96234.0,0.57621908]
[1746109975995,7.291e-05,96237.0,96234.0,0.57621908]
[1746109976199,0.001,96246.0,96245.0,0.2077302]
[1746109976401,0.001,96246.0,96245.0,0.5685302]
[1746109976912,0.01892865,96246.0,96245.0,0.5685302]
[1746109977912,0.02292865,96246.0,96245.0,0.5695302]
[1746109978908,0.02592865,96246.0,96245.0,0.5695302]
[1746109979303,0.02588865,96246.0,96245.0,0.5695302]
[1746109979508,0.02588865,96246.0,96245.0,0.3618]
[1746109979708,0.02592865,96246.0,96245.0,0.5695302]
[1746109982709,5.401e-05,96255.0,96245.0,0.71569999]
[1746109982909,0.0015,96270.0,96254.0,0.3608]
[1746109983108,0.01965261,96270.0,96269.0,0.3608]
[1746109983305,0.001,96276.0,96269.0,0.3608]
[1746109983515,0.1,96300.0,96299.0,0.2076137]
[1746109983815,0.1,96300.0,96299.0,0.7216]
[1746109983816,0.3076116,96300.0,96299.0,0.7216]
[1746109984010,0.3076116,96300.0,96299.0,0.3608]
[1746109984011,0.32545658,96300.0,96299.0,0.3608]
[1746109984212,0.2076417,96286.0,96285.0,0.3608]
[1746109985004,0.3114977,96286.0,96285.0,0.3608]
[1746109985306,0.3114977,96286.0,96252.0,0.0015584]
[1746109985307,0.2076763,96270.0,96269.0,0.32392166]
[1746109986810,0.2086763,96270.0,96269.0,0.32392166]
[1746109987408,0.2106763,96270.0,96269.0,0.32392166]
[1746109987612,0.2077129,96253.0,96252.0,0.0015584]
[1746109989012,0.2087129,96253.0,96252.0,0.0015584]
[1746109990217,0.22687675,96253.0,96252.0,0.0015584]
[1746109991624,0.22687675,96253.0,96252.0,1e-07]
[1746109991807,0.12305586,96253.0,96248.0,3e-08]
[1746109992013,0.2077216,96249.0,96248.0,3e-08]
[1746109992213,0.207728,96246.0,96245.0,0.00103901]
[1746109992626,0.311628,96246.0,96245.0,0.00103901]
[1746109992818,0.311628,96246.0,96245.0,1e-08]
[1746109993121,0.310628,96246.0,96245.0,1e-08]
[1746109993320,0.2077626,96230.0,96218.0,0.3608]
[1746109993511,0.2077863,96219.0,96218.0,0.3608]
[1746109993713,0.2067863,96219.0,96218.0,0.3608]
[1746109995615,0.2067863,96219.0,96218.0,0.3648]
[1746109996217,0.2067863,96219.0,96218.0,0.3678]
[1746109996531,0.22444675,96219.0,96218.0,0.3678]
[1746109997226,0.01766045,96219.0,96218.0,0.5755885]
[1746109997425,0.2078435,96230.0,96229.0,0.2077647]
[1746109997626,0.2078392,96230.0,96229.0,0.5685647]
[1746109997924,7.66e-05,96230.0,96229.0,0.5685647]
[1746109998527,0.2078792,96230.0,96229.0,0.3608]
[1746109998822,0.2078792,96230.0,96229.0,0.3618]
[1746109999020,0.2078792,96230.0,96229.0,0.3628]
[1746110000027,0.2077456,96238.0,96237.0,0.2077475]
[1746110000324,0.0682,96260.0,96240.0,0.0519347]
[1746110000523,0.20776051,96256.0,96255.0,0.3608]
[1746110002819,0.21276051,96256.0,96255.0,0.3608]
[1746110003331,0.20776051,96256.0,96255.0,0.3608]
[1746110003519,0.20976051,96256.0,96255.0,0.3608]
[1746110004030,0.20976051,96256.0,96255.0,0.5685086]
[1746110004527,0.2077259,96247.0,96246.0,0.3608]
[1746110004824,0.2077453,96238.0,96237.0,0.36870566]
[1746110005228,0.2077433,96240.0,96237.0,0.36870566]
[1746110005420,0.2077207,96250.0,96238.0,0.3608]
[1746110005621,0.2077207,96250.0,96249.0,0.5685156]
[1746110006130,0.2077607,96250.0,96249.0,0.5685156]
[1746110006520,0.2077594,96250.0,96249.0,0.5685156]
[1746110007030,0.2077594,96250.0,96249.0,0.3608]
[1746110008327,0.2097594,96250.0,96249.0,0.3608]
[1746110008727,0.2107594,96250.0,96249.0,0.3608]
[1746110009130,0.2117594,96250.0,96249.0,0.3608]
[1746110009330,0.2127594,96250.0,96249.0,0.3608]
[1746110016437,0.005,96250.0,96249.0,0.5685216]
[1746110016733,0.00504,96250.0,96249.0,0.5685216]
[1746110016942,0.005,96250.0,96249.0,0.5685216]
[1746110017238,0.00504,96250.0,96249.0,0.5685216]
[1746110017432,0.005,96250.0,96249.0,0.5685216]
[1746110017633,0.00204,96250.0,96249.0,0.5685216]
[1746110017829,4e-05,96250.0,96249.0,0.5685216]
[1746110018033,0.0327177,96260.0,96249.0,0.3608]
[1746110018229,5.401e-05,96263.0,96259.0,0.3608]
[1746110018429,0.2076883,96265.0,96262.0,0.3608]
[1746110018630,0.2077314,96263.0,96262.0,0.3608]
[1746110018841,0.0317901,96266.0,96265.0,0.207687]
[1746110019031,4e-05,96263.0,96262.0,0.3608]
[1746110019227,4e-05,96263.0,96262.0,0.5684935]
[1746110019431,0.0015,96270.0,96269.0,0.2076784]
[1746110019637,0.0015,96270.0,96269.0,0.5684784]
[1746110019839,0.0015,96270.0,96269.0,0.6723544]
[1746110020630,0.00154,96270.0,96269.0,0.6723544]
[1746110021431,0.0015,96270.0,96269.0,0.6723544]
[1746110021627,0.00254,96270.0,96269.0,0.6723544]
[1746110021834,0.0534003,96305.0,96280.0,0.0519136]
[1746110022033,0.0534003,96305.0,96299.0,0.3608]
[1746110022034,0.34020743,96300.0,96299.0,0.3608]
[1746110022341,0.207631,96291.0,96290.0,0.3608]
[1746110023028,0.31148301,96291.0,96290.0,0.35301139]
[1746110024541,0.31648301,96291.0,96290.0,0.35301139]
[1746110024842,0.46965201,96291.0,96269.0,0.4158]
[1746110025042,0.2076763,96270.0,96269.0,0.4158]
[1746110025339,0.18721862,96280.0,96267.0,0.3608]
[1746110025340,0.2076806,96268.0,96267.0,0.3608]
[1746110027740,0.2086806,96268.0,96267.0,0.3608]
[1746110028040,0.2096806,96268.0,96267.0,0.3608]
[1746110028433,0.2106806,96268.0,96267.0,0.3608]
[1746110028634,0.2126806,96268.0,96267.0,0.3608]
[1746110030437,0.2146806,96268.0,96267.0,0.3608]
[1746110030744,0.2077129,96254.0,96253.0,0.2077129]
[1746110031044,0.2077129,96253.0,96252.0,0.0015584]
[1746110032534,0.2097129,96253.0,96252.0,0.0015584]
[1746110033640,0.24225807,96253.0,96252.0,0.0015584]
[1746110033831,0.24425807,96253.0,96252.0,0.0015584]
[1746110034439,0.24725807,96253.0,96252.0,0.0015584]
[1746110035247,0.24925807,96253.0,96252.0,0.0015584]
[1746110037541,0.207728,96246.0,96237.0,0.00790566]
[1746110038948,0.210728,96246.0,96237.0,0.00790566]
[1746110039148,0.213728,96246.0,96237.0,0.00790566]
[1746110041151,0.213728,96246.0,96245.0,0.36183901]
[1746110041352,0.00604,96246.0,96245.0,0.56956921]
[1746110041541,0.213768,96246.0,96245.0,0.56956921]
[1746110041949,0.00604,96246.0,96245.0,0.6734692]
[1746110042142,0.00604,96246.0,96245.0,0.56956921]
[1746110042342,0.006,96246.0,96245.0,0.56956921]
[1746110042537,4e-05,96246.0,96245.0,0.36183901]
[1746110042846,0.24025867,96253.0,96252.0,0.2077151]
[1746110044152,0.2077172,96251.0,96250.0,0.5685186]
[1746110044347,5.401e-05,96259.0,96258.0,0.2077021]
[1746110044553,0.00013287,96274.0,96258.0,0.2077021]
[1746110044554,0.00013287,96274.0,96265.0,0.207687]
[1746110044853,0.2076715,96273.0,96269.0,0.2076784]
[1746110045151,0.207672,96272.0,96269.0,0.5684784]
[1746110045353,0.23990724,96272.0,96269.0,0.5684784]
[1746110045651,5.401e-05,96280.0,96279.0,0.2076568]
[1746110045843,0.03316072,96282.0,96279.0,0.3608]
[1746110046044,0.0519104,96287.0,96279.0,0.3608]
[1746110046245,0.0519104,96287.0,96281.0,0.2076488]
[1746110046246,0.2076537,96282.0,96281.0,0.2076488]
[1746110046446,0.05191,96287.0,96283.0,0.2076468]
[1746110046647,0.2076522,96284.0,96283.0,0.2076468]
[1746110048248,0.03263932,96284.0,96283.0,0.2076468]
[1746110048449,0.2106404,96287.0,96286.0,0.2076417]
[1746110048653,0.2146396,96287.0,96286.0,0.2076417]
[1746110048850,0.2076458,96285.0,96284.0,0.2076456]
[1746110049049,0.24097597,96285.0,96284.0,0.2076456]
[1746110049248,0.2076547,96280.0,96279.0,0.3608]
[1746110049449,0.2076547,96280.0,96279.0,0.5684568]
[1746110049651,0.2076519,96282.0,96281.0,0.2076504]
[1746110050047,0.2076547,96280.0,96279.0,0.5684563]
[1746110050250,0.03737017,96285.0,96282.0,0.2076485]
[1746110050456,0.00404,96285.0,96284.0,0.2076461]
[1746110050754,0.00804,96285.0,96284.0,0.2076461]
[1746110050954,0.008,96285.0,96284.0,0.2076461]
[1746110051254,0.00804,96285.0,96284.0,0.2076461]
[1746110052255,0.00404,96285.0,96284.0,0.2076461]
[1746110052458,0.1,96300.0,96299.0,0.2076137]
[1746110052640,0.1,96300.0,96299.0,0.5684137]
[1746110053044,0.10004,96300.0,96299.0,0.5684137]
[1746110053443,0.10004,96300.0,96299.0,0.57600033]
[1746110053849,0.106,96300.0,96299.0,0.57600033]
[1746110054055,0.10604,96300.0,96299.0,0.57600033]
[1746110054956,0.11404,96300.0,96299.0,0.57700033]
[1746110057960,0.114,96300.0,96299.0,0.57700033]
[1746110058159,0.11404,96300.0,96299.0,0.57700033]
[1746110058558,0.0015,96305.0,96304.0,0.2076029]
[1746110058754,5.401e-05,96311.0,96307.0,0.051899]
[1746110059060,5.401e-05,96311.0,96310.0,0.56839]
[1746110059271,0.20764181,96311.0,96310.0,0.3608]
[1746110059755,0.05256538,96311.0,96310.0,0.56839]
[1746110061356,0.26015318,96311.0,96310.0,0.56839]
[1746110061764,0.06056538,96311.0,96310.0,0.56839]
[1746110062361,0.26815318,96311.0,96310.0,0.3608]
[1746110062751,0.06056538,96311.0,96310.0,0.56839]
[1746110064160,0.06056538,96311.0,96310.0,0.3608]
[1746110064361,0.008,96311.0,96310.0,0.56839]
[1746110064666,0.00804,96311.0,96310.0,0.56839]
[1746110065066,0.0587317,96311.0,96310.0,0.56839]
[1746110067653,0.00804,96311.0,96310.0,0.56839]
[1746110067860,0.008,96311.0,96310.0,0.56839]
[1746110068061,0.00804,96311.0,96310.0,0.56839]
[1746110070267,5.401e-05,96319.0,96318.0,0.2075728]
[1746110070568,4e-05,96319.0,96318.0,0.5683728]
[1746110071062,5.401e-05,96331.0,96329.0,0.2075474]
[1746110071270,5.401e-05,96331.0,96330.0,0.3608]
[1746110071465,0.20759871,96331.0,96330.0,0.3608]
[1746110072367,0.21659871,96331.0,96330.0,0.3608]
[1746110072962,0.26891085,96331.0,96330.0,0.3608]
[1746110074067,0.25991085,96331.0,96330.0,0.3608]
[1746110075567,0.05236615,96331.0,96330.0,0.3608]
[1746110075768,0.25991085,96331.0,96330.0,0.3608]
[1746110077564,0.05236615,96331.0,96330.0,0.3608]
[1746110077763,5.401e-05,96331.0,96330.0,0.5683469]
[1746110077965,0.001,96336.0,96335.0,0.2075361]
[1746110079268,0.05289229,96336.0,96335.0,0.2075361]
[1746110080774,0.05489229,96336.0,96335.0,0.2075361]
[1746110083471,0.05489229,96336.0,96332.0,0.3608]